[Event "26th OIBM 2023"]
[Site "Gmund am Tegernsee"]
[Date "2023.10.30"]
[Round "3.33"]
[White "Gierhardt, Vito"]
[Black "Bianco, Valerio"]
[Result "0-1"]
[ECO "B59"]
[WhiteElo "1648"]
[BlackElo "2055"]
[Annotator "NA RC"]
[PlyCount "132"]
[EventDate "2023.10.04"]
[EventType "swiss"]
[EventCountry "GER"]
[SourceTitle "playchess.com"]
[Source "ChessBase"]
[SourceQuality "1"]
[TimeControl "40/5400+30:1800+30"]

1. e4 {[%emt 0:02:36]} c5 {[%emt 0:00:10]} 2. Nf3 {[%emt 0:01:26]} d6 {[%emt 0:00:11]} 3. d4 {[%emt 0:02:28]} cxd4 {[%emt 0:00:10]} 4. Nxd4 {[%emt 0:00:05]} Nf6 {[%emt 0:00:08]} 5. Nc3 {[%emt 0:00:46]} Nc6 {[%emt 0:00:09]} 6. Be2 {[%emt 0:04:08]} e5 {[%emt 0:03:14]} 7. Nb3 {[%emt 0:01:31]} Be7 {[%emt 0:00:46]} 8. Be3 {[%emt 0:05:04]} Be6 {[%emt 0:00:37]} 9. Bf3 {[%emt 0:12:46]} Na5 {[%emt 0:10:35]} 10. O-O {[%emt 0:04:37]} Nc4 {[%emt 0:01:24]} 11. Bc1 {[%emt 0:03:59]} O-O {[%emt 0:00:44]} 12. Nd2 {[%emt 0:03:33]} Rc8 {[%emt 0:06:55]} 13. Nxc4 {[%emt 0:03:43]} Rxc4 {[%emt 0:09:11]} 14. Be3 {[%emt 0:02:01]} a6 {[%emt 0:00:18]} 15. a4 {[%emt 0:02:33]} Qd7 {[%emt 0:12:34]} 16. Re1 {[%emt 0:06:58]} Rfc8 {[%emt 0:01:30]} 17. a5 {[%emt 0:04:37]} h6 {[%emt 0:06:50]} 18. Qd3 {[%emt 0:04:03]} Qc6 {[%emt 0:06:09]} 19. h3 {[%emt 0:04:42]} Rb4 {[%emt 0:01:43]} 20. Reb1 {[%emt 0:03:04]} Nd7 {[%emt 0:07:59]} 21. Bd1 {[%emt 0:09:09]} Nc5 {[%emt 0:08:31]} 22. Nd5 {[%emt 0:03:33]} Bxd5 {[%emt 0:00:03]} 23. exd5 {[%emt 0:01:17]} Qc7 {[%emt 0:06:38]} 24. Qc3 {[%emt 0:04:22]} Ra4 {[%emt 0:02:47]} 25. Bg4 {[%emt 0:02:52]} Rxa1 {[%emt 0:00:17]} 26. Rxa1 {[%emt 0:00:07]} Nd7 {[%emt 0:01:48]} 27. Qd3 {[%emt 0:01:44]} Re8 {[%emt 0:02:25]} 28. Qf5 {[%emt 0:00:57]} Nf6 {[%emt 0:01:22]} 29. Bf3 {[%emt 0:02:14]} Rc8 {[%emt 0:03:17]} 30. c3 {[%emt 0:00:37]} Qc4 {[%emt 0:01:09]} 31. Rd1 {[%emt 0:02:20]} g6 {[%emt 0:03:26]} 32. Qc2 {[%emt 0:00:04]} Kh7 {[%emt 0:00:38]} 33. Be2 {[%emt 0:00:34]} Qc7 {[%emt 0:00:27]} 34. Bb6 {[%emt 0:00:13]} Qd7 {[%emt 0:00:32]} 35. c4 {[%emt 0:00:56]} Bd8 {[%emt 0:00:14]} 36. Qb3 {[%emt 0:01:12]} Bxb6 {[%emt 0:01:10]} 37. Qxb6 {[%emt 0:00:08]} Qc7 {[%emt 0:00:50]} 38. Qxc7 {[%emt 0:01:22]} Rxc7 {[%emt 0:00:01]} 39. b4 {[%emt 0:00:10]} Nd7 {[%emt 0:01:21]} 40. Rb1 {[%emt 0:00:45]} Kg7 {[%emt 0:00:51]} 41. Kf1 {[%emt 0:02:07]} f5 {[%emt 0:01:21]} 42. Ke1 {[%emt 0:00:43]} Kf6 {[%emt 0:00:15]} 43. Kd2 {[%emt 0:02:37]} Ke7 {[%emt 0:02:02]} 44. g4 {[%emt 0:02:39]} f4 {[%emt 0:01:55]} 45. Bd3 {[%emt 0:00:50]} Kf6 {[%emt 0:00:08]} 46. Kc3 {[%emt 0:03:16]} Kg7 {[%emt 0:03:54]} 47. Kd2 {[%emt 0:02:49]} Nf6 {[%emt 0:00:44]} 48. b5 {[%emt 0:03:03]} Nd7 {[%emt 0:02:31]} 49. h4 {[%emt 0:03:58]} Kf7 {[%emt 0:00:57]} 50. h5 {[%emt 0:00:53]} g5 {[%emt 0:00:55]} 51. Bf5 {[%emt 0:02:21]} Nc5 {[%emt 0:02:59]} 52. bxa6 {[%emt 0:01:29]} Nxa6 {[%emt 0:01:26]} 53. Bd3 {[%emt 0:03:23]} Ke7 {[%emt 0:00:25]} 54. Rb6 {[%emt 0:00:41]} Nc5 {[%emt 0:00:30]} 55. f3 {[%emt 0:00:59]} Rc8 {[%emt 0:01:17]} 56. Bf5 {[%emt 0:00:56]} Ra8 {[%emt 0:00:40]} 57. Rb5 {[%emt 0:00:18]} Rxa5 {[%emt 0:01:40]} 58. Rxa5 {[%emt 0:02:02]} Nb3+ {[%emt 0:00:05]} 59. Kc3 {[%emt 0:00:24]} Nxa5 {[%emt 0:00:05]} 60. Kb4 {[%emt 0:00:33]} b6 {[%emt 0:00:07]} 61. Kb5 {[%emt 0:00:52]} Kd8 {[%emt 0:00:31]} 62. Bd3 {[%emt 0:01:12]} Kc7 {[%emt 0:00:10]} 63. Be4 {[%emt 0:00:50]} Nb3 {[%emt 0:00:32]} 64. Kb4 {[%emt 0:02:53]} Nd2 {[%emt 0:00:13]} 65. Kc3 {[%emt 0:00:30]} Nxe4+ {[%emt 0:00:19]} 66. fxe4 {[%emt 0:00:04]} Kb7 {[%emt 0:00:11]} 0-1

[Event "26th OIBM 2023"]
[Site "Gmund am Tegernsee"]
[Date "2023.10.30"]
[Round "3.34"]
[White "Mueller, Kai-Markus"]
[Black "Oyberman, Iliia"]
[Result "1/2-1/2"]
[ECO "E09"]
[WhiteElo "2179"]
[BlackElo "1638"]
[Annotator "RC"]
[PlyCount "185"]
[EventDate "2023.10.04"]
[EventType "swiss"]
[EventCountry "GER"]
[SourceTitle "playchess.com"]
[Source "ChessBase"]
[SourceQuality "1"]
[TimeControl "40/5400+30:1800+30"]

1. d4 {[%emt 0:00:16]} d5 {[%emt 0:00:04]} 2. Nf3 {[%emt 0:00:20]} e6 {[%emt 0:00:05]} 3. g3 {[%emt 0:01:12]} Nf6 {[%emt 0:00:06]} 4. Bg2 {[%emt 0:00:12]} Be7 {[%emt 0:00:06]} 5. O-O {[%emt 0:00:14]} O-O {[%emt 0:00:05]} 6. c4 {[%emt 0:00:21]} c6 {[%emt 0:00:05]} 7. Qc2 {[%emt 0:02:50]} Nbd7 {[%emt 0:06:26]} 8. Nbd2 {[%emt 0:02:31]} Qc7 {[%emt 0:01:29]} 9. e4 {[%emt 0:03:54]} dxe4 {[%emt 0:11:58]} 10. Nxe4 {[%emt 1:23:40]} Nxe4 {[%emt 0:14:07]} 11. Qxe4 {[%emt 0:00:00]} Nf6 {[%emt 0:02:10]} 12. Qe2 {[%emt 0:00:00]} b6 {[%emt 0:05:11]} 13. Bf4 {[%emt 0:00:00]} Bd6 {[%emt 0:11:24]} 14. Ne5 {[%emt 0:00:00]} Bb7 {[%emt 0:03:04]} 15. c5 {[%emt 0:00:00]} Bxe5 {[%emt 0:15:23]} 16. Bxe5 {[%emt 0:00:00]} Qc8 {[%emt 0:01:05]} 17. Bxf6 {[%emt 0:00:00]} gxf6 {[%emt 0:00:45]} 18. Qh5 {[%emt 0:00:00]} Qd8 {[%emt 0:04:42]} 19. Rad1 {[%emt 0:00:00]} f5 {[%emt 0:00:38]} 20. Qh6 {[%emt 0:00:00]} Qe7 {[%emt 0:02:27]} 21. Rfe1 {[%emt 0:00:00]} Rfd8 {[%emt 0:00:42]} 22. g4 {[%emt 0:00:00]} Qf8 {[%emt 0:03:11]} 23. Qg5+ {[%emt 0:00:00]} Qg7 {[%emt 0:00:26]} 24. Qxg7+ {[%emt 0:00:00]} Kxg7 {[%emt 0:00:09]} 25. gxf5 {[%emt 0:00:00]} exf5 {[%emt 0:01:29]} 26. Re7 {[%emt 0:00:00]} Rab8 {[%emt 0:00:27]} 27. cxb6 {[%emt 0:00:00]} axb6 {[%emt 0:00:09]} 28. Rc7 {[%emt 0:00:00]} Rdc8 {[%emt 0:01:12]} 29. Rxc8 {[%emt 0:00:00]} Rxc8 {[%emt 0:00:04]} 30. b4 {[%emt 0:00:00]} Rc7 {[%emt 0:01:14]} 31. Rc1 {[%emt 0:00:00]} Rd7 {[%emt 0:03:46]} 32. Bxc6 {[%emt 0:00:00]} Rc7 {[%emt 0:00:16]} 33. d5 {[%emt 0:02:49]} Kf6 {[%emt 0:01:29]} 34. Re1 {[%emt 0:01:52]} Bxc6 {[%emt 0:00:20]} 35. Rc1 {[%emt 0:00:22]} Ke5 {[%emt 0:00:32]} 36. Rxc6 {[%emt 0:01:08]} Ra7 {[%emt 0:01:40]} 37. d6 {[%emt 0:01:58]} Ke6 {[%emt 0:00:16]} 38. Rxb6 {[%emt 0:01:27]} Rxa2 {[%emt 0:00:04]} 39. Kg2 {[%emt 0:01:14]} Rb2 {[%emt 0:00:11]} 40. Kg3 {[%emt 0:01:17]} Kd7 {[%emt 0:00:45]} 41. h3 {[%emt 0:03:39]} Ke6 {[%emt 0:00:16]} 42. f3 {[%emt 0:00:56]} Rb1 {[%emt 0:00:24]} 43. Kf4 {[%emt 0:04:01]} Rb3 {[%emt 0:00:12]} 44. h4 {[%emt 0:01:46]} Rc3 {[%emt 0:01:58]} 45. b5 {[%emt 0:03:02]} Rb3 {[%emt 0:00:15]} 46. h5 {[%emt 0:03:46]} h6 {[%emt 0:01:21]} 47. d7+ {[%emt 0:07:36]} Kxd7 {[%emt 0:00:52]} 48. Rxh6 {[%emt 0:01:37]} Rxb5 {[%emt 0:00:04]} 49. Rf6 {[%emt 0:00:38]} Ke7 {[%emt 0:00:03]} 50. Rxf5 {[%emt 0:00:36]} Rb1 {[%emt 0:02:25]} 51. Ra5 {[%emt 0:04:58]} Kf6 {[%emt 0:00:22]} 52. Ra6+ {[%emt 0:00:28]} Kg7 {[%emt 0:00:10]} 53. h6+ {[%emt 0:03:04]} Kh7 {[%emt 0:00:06]} 54. Rf6 {[%emt 0:01:25]} Rb5 {[%emt 0:00:42]} 55. Rxf7+ {[%emt 0:01:17]} Kxh6 {[%emt 0:00:03]} 56. Rf5 {[%emt 0:01:21]} Rb6 {[%emt 0:00:03]} 57. Ke5 {[%emt 0:00:25]} Kg6 {[%emt 0:00:01]} 58. Rf8 {[%emt 0:00:19]} Kg7 {[%emt 0:00:15]} 59. Rf4 {[%emt 0:00:26]} Kg6 {[%emt 0:00:22]} 60. Rf8 {[%emt 0:00:23]} Kg7 {[%emt 0:00:01]} 61. Rd8 {[%emt 0:00:29]} Kf7 {[%emt 0:00:09]} 62. Rd7+ {[%emt 0:00:12]} Ke8 {[%emt 0:00:16]} 63. Rd6 {[%emt 0:00:12]} Rb3 {[%emt 0:00:13]} 64. f4 {[%emt 0:00:14]} Ke7 {[%emt 0:00:04]} 65. Rh6 {[%emt 0:01:18]} Rb5+ {[%emt 0:00:05]} 66. Ke4 {[%emt 0:00:14]} Ra5 {[%emt 0:00:10]} 67. Rb6 {[%emt 0:00:24]} Rc5 {[%emt 0:00:11]} 68. Kf3 {[%emt 0:00:39]} Kf7 {[%emt 0:00:21]} 69. Kg4 {[%emt 0:00:09]} Ra5 {[%emt 0:00:03]} 70. Rh6 {[%emt 0:00:31]} Kg7 {[%emt 0:00:47]} 71. Rb6 {[%emt 0:00:36]} Kf7 {[%emt 0:00:06]} 72. Rc6 {[%emt 0:00:10]} Rb5 {[%emt 0:00:05]} 73. Rh6 {[%emt 0:00:26]} Kg7 {[%emt 0:00:03]} 74. Re6 {[%emt 0:00:11]} Kf7 {[%emt 0:00:22]} 75. Rd6 {[%emt 0:01:10]} Ra5 {[%emt 0:00:03]} 76. Kf3 {[%emt 0:00:33]} Rb5 {[%emt 0:00:42]} 77. Ke4 {[%emt 0:00:09]} Ra5 {[%emt 0:00:12]} 78. Rb6 {[%emt 0:01:21]} Rc5 {[%emt 0:00:05]} 79. Rh6 {[%emt 0:00:45]} Ra5 {[%emt 0:00:18]} 80. Rd6 {[%emt 0:00:30]} Rb5 {[%emt 0:00:07]} 81. f5 {[%emt 0:00:22]} Rb1 {[%emt 0:00:43]} 82. Rd4 {[%emt 0:00:17]} Re1+ {[%emt 0:00:27]} 83. Kf4 {[%emt 0:00:17]} Rf1+ {[%emt 0:00:10]} 84. Ke5 {[%emt 0:00:32]} Re1+ {[%emt 0:00:04]} 85. Re4 {[%emt 0:00:08]} Rxe4+ {[%emt 0:00:16]} 86. Kxe4 {[%emt 0:00:06]} Kf6 {[%emt 0:00:01]} 87. Kf4 {[%emt 0:00:06]} Kf7 {[%emt 0:00:02]} 88. Ke5 {[%emt 0:00:05]} Ke7 {[%emt 0:00:03]} 89. f6+ {[%emt 0:00:04]} Kf7 {[%emt 0:00:01]} 90. Kf5 {[%emt 0:00:06]} Kf8 {[%emt 0:00:04]} 91. Kg6 {[%emt 0:00:05]} Kg8 {[%emt 0:00:02]} 92. f7+ {[%emt 0:00:06]} Kf8 {[%emt 0:00:02]} 93. Kf6 {[%emt 0:05:13]} 1/2-1/2

[Event "26th OIBM 2023"]
[Site "Gmund am Tegernsee"]
[Date "2023.10.30"]
[Round "3.35"]
[White "Jerie, Sven"]
[Black "Mirzoyan, Davit A."]
[Result "1/2-1/2"]
[ECO "B28"]
[WhiteElo "2055"]
[BlackElo "1463"]
[Annotator "NA RC"]
[PlyCount "78"]
[EventDate "2023.10.04"]
[EventType "swiss"]
[EventCountry "GER"]
[SourceTitle "playchess.com"]
[Source "ChessBase"]
[SourceQuality "1"]
[TimeControl "40/5400+30:1800+30"]

1. e4 {[%emt 0:00:06]} c5 {[%emt 0:00:04]} 2. Nf3 {[%emt 0:00:09]} a6 {[%emt 0:00:06]} 3. c3 {[%emt 0:00:21]} d5 {[%emt 0:00:06]} 4. exd5 {[%emt 0:00:21]} Qxd5 {[%emt 0:00:05]} 5. d4 {[%emt 0:00:27]} e6 {[%emt 0:00:13]} 6. Be3 {[%emt 0:02:02]} Nd7 {[%emt 0:00:28]} 7. c4 {[%emt 0:06:14]} Qd6 {[%emt 0:00:33]} 8. Nc3 {[%emt 0:01:44]} Ngf6 {[%emt 0:00:19]} 9. Qa4 {[%emt 0:04:46]} Qc6 {[%emt 0:07:40]} 10. Qxc6 {[%emt 0:14:19]} bxc6 {[%emt 0:00:07]} 11. dxc5 {[%emt 0:00:21]} Ng4 {[%emt 0:11:39]} 12. Bd2 {[%emt 0:10:01]} a5 {[%emt 0:24:00]} 13. h3 {[%emt 0:03:14]} Ngf6 {[%emt 0:00:23]} 14. Be3 {[%emt 0:08:59]} Bxc5 {[%emt 0:10:04]} 15. Bxc5 {[%emt 0:04:44]} Nxc5 {[%emt 0:00:06]} 16. Ne5 {[%emt 0:00:30]} Ra6 {[%emt 0:14:48]} 17. Be2 {[%emt 0:02:56]} Nfd7 {[%emt 0:02:05]} 18. Nxd7 {[%emt 0:05:03]} Bxd7 {[%emt 0:00:11]} 19. O-O-O {[%emt 0:00:58]} e5 {[%emt 0:06:10]} 20. Rhe1 {[%emt 0:06:52]} Be6 {[%emt 0:03:21]} 21. Bf1 {[%emt 0:10:58]} f6 {[%emt 0:02:04]} 22. Rd6 {[%emt 0:11:33]} Ke7 {[%emt 0:00:24]} 23. Red1 {[%emt 0:00:20]} Rb6 {[%emt 0:01:03]} 24. g3 {[%emt 0:03:42]} Rhb8 {[%emt 0:06:27]} 25. R1d2 {[%emt 0:00:40]} Bf5 {[%emt 0:07:31]} 26. g4 {[%emt 0:00:17]} Bg6 {[%emt 0:01:49]} 27. Nd1 {[%emt 0:01:38]} Bf7 {[%emt 0:00:49]} 28. Nc3 {[%emt 0:00:42]} R8b7 {[%emt 0:00:52]} 29. Bg2 {[%emt 0:00:29]} Rxb2 {[%emt 0:00:36]} 30. Rxc6 {[%emt 0:00:29]} Rxd2 {[%emt 0:00:29]} 31. Kxd2 {[%emt 0:00:10]} Rb2+ {[%emt 0:00:25]} 32. Ke3 {[%emt 0:00:13]} Nd7 {[%emt 0:00:29]} 33. Nd5+ {[%emt 0:01:06]} Bxd5 {[%emt 0:00:14]} 34. Bxd5 {[%emt 0:00:05]} Rxa2 {[%emt 0:00:04]} 35. Re6+ {[%emt 0:00:33]} Kd8 {[%emt 0:00:11]} 36. Rd6 {[%emt 0:00:13]} Ra3+ {[%emt 0:00:58]} 37. Ke4 {[%emt 0:00:29]} Ke7 {[%emt 0:00:33]} 38. Re6+ {[%emt 0:00:08]} Kd8 {[%emt 0:00:50]} 39. Rd6 {[%emt 0:00:21]} Ke7 {[%emt 0:01:44]} 1/2-1/2

[Event "26th OIBM 2023"]
[Site "Gmund am Tegernsee"]
[Date "2023.10.30"]
[Round "3.36"]
[White "Linster, Philippe"]
[Black "Chua, Daniel James"]
[Result "1-0"]
[ECO "A49"]
[WhiteElo "2303"]
[BlackElo "1446"]
[Annotator "RC"]
[PlyCount "117"]
[EventDate "2023.10.04"]
[EventType "swiss"]
[EventCountry "GER"]
[SourceTitle "playchess.com"]
[Source "ChessBase"]
[SourceQuality "1"]
[TimeControl "40/5400+30:1800+30"]

1. d4 {[%emt 0:00:03]} Nf6 {[%emt 0:00:12]} 2. Nf3 {[%emt 0:00:05]} g6 {[%emt 0:00:59]} 3. g3 {[%emt 0:00:07]} Bg7 {[%emt 0:00:05]} 4. Bg2 {[%emt 0:00:05]} O-O {[%emt 0:00:07]} 5. O-O {[%emt 0:00:05]} d6 {[%emt 0:00:51]} 6. Nc3 {[%emt 0:00:06]} Re8 {[%emt 0:02:13]} 7. a4 {[%emt 0:01:02]} Nbd7 {[%emt 0:07:13]} 8. a5 {[%emt 0:01:32]} a6 {[%emt 0:07:38]} 9. e4 {[%emt 0:07:20]} e5 {[%emt 0:03:16]} 10. dxe5 {[%emt 0:01:46]} Nxe5 {[%emt 0:00:19]} 11. Nxe5 {[%emt 0:11:36]} dxe5 {[%emt 0:00:57]} 12. Qxd8 {[%emt 0:00:27]} Rxd8 {[%emt 0:00:07]} 13. Bg5 {[%emt 0:00:47]} Re8 {[%emt 0:07:18]} 14. Rfd1 {[%emt 0:11:20]} Be6 {[%emt 0:01:38]} 15. Na4 {[%emt 0:05:53]} h6 {[%emt 0:01:38]} 16. Be3 {[%emt 0:03:41]} Rad8 {[%emt 1:03:59]} 17. Nc5 {[%emt 0:02:46]} Bc8 {[%emt 0:00:00]} 18. f3 {[%emt 0:04:34]} Nd7 {[%emt 0:00:00]} 19. Nb3 {[%emt 0:05:21]} Nb8 {[%emt 0:00:00]} 20. Bf1 {[%emt 0:05:19]} Nc6 {[%emt 0:00:00]} 21. c3 {[%emt 0:02:06]} Bf8 {[%emt 0:00:00]} 22. Bc4 {[%emt 0:02:53]} Be6 {[%emt 0:00:00]} 23. Bxe6 {[%emt 0:04:16]} Rxd1+ {[%emt 0:00:00]} 24. Rxd1 {[%emt 0:00:01]} Rxe6 {[%emt 0:00:00]} 25. Nc5 {[%emt 0:08:06]} Bxc5 {[%emt 0:00:00]} 26. Bxc5 {[%emt 0:00:01]} Re8 {[%emt 0:00:00]} 27. Rd7 {[%emt 0:03:40]} Rd8 {[%emt 0:00:00]} 28. Rxc7 {[%emt 0:00:09]} Rd1+ {[%emt 0:00:00]} 29. Kf2 {[%emt 0:00:15]} Rd2+ {[%emt 0:00:00]} 30. Ke3 {[%emt 0:00:09]} Rxb2 {[%emt 0:00:00]} 31. Bb6 {[%emt 0:00:49]} Rb5 {[%emt 0:00:00]} 32. Kd3 {[%emt 0:04:02]} Rb2 {[%emt 0:00:00]} 33. Kc4 {[%emt 0:02:24]} Kg7 {[%emt 0:00:00]} 34. Kc5 {[%emt 0:02:57]} Nd8 {[%emt 0:00:00]} 35. Rd7 {[%emt 0:01:17]} Nc6 {[%emt 0:00:00]} 36. Kd6 {[%emt 0:01:56]} Rc2 {[%emt 0:00:00]} 37. Rxb7 {[%emt 0:01:00]} Rxc3 {[%emt 0:00:00]} 38. Rc7 {[%emt 0:01:53]} Nd4 {[%emt 0:00:00]} 39. Rxc3 {[%emt 0:00:17]} Nb5+ {[%emt 0:00:00]} 40. Kxe5 {[%emt 0:02:52]} Nxc3 {[%emt 0:00:00]} 41. Kd6 {[%emt 0:31:53]} Kf8 {[%emt 0:10:59]} 42. Kd7 {[%emt 0:00:00]} g5 {[%emt 0:00:00]} 43. Bc5+ {[%emt 0:00:00]} Kg8 {[%emt 0:00:00]} 44. Kc6 {[%emt 0:00:00]} g4 {[%emt 0:00:00]} 45. fxg4 {[%emt 0:00:00]} Nxe4 {[%emt 0:00:00]} 46. Be3 {[%emt 0:00:00]} Kg7 {[%emt 0:00:00]} 47. Kb6 {[%emt 0:00:00]} Nd6 {[%emt 0:00:00]} 48. Kxa6 {[%emt 0:00:00]} Nc4 {[%emt 0:00:00]} 49. Bf4 {[%emt 0:00:00]} Kg6 {[%emt 0:00:00]} 50. Kb5 {[%emt 0:00:00]} Nxa5 {[%emt 0:00:00]} 51. Kxa5 {[%emt 0:00:00]} h5 {[%emt 0:00:00]} 52. gxh5+ {[%emt 0:00:00]} Kxh5 {[%emt 0:00:00]} 53. Kb5 {[%emt 0:00:00]} Kg4 {[%emt 0:00:00]} 54. h4 {[%emt 0:00:00]} f5 {[%emt 0:00:00]} 55. Kc5 {[%emt 0:00:00]} Kh5 {[%emt 0:00:00]} 56. Kd5 {[%emt 0:00:00]} Kg4 {[%emt 0:00:00]} 57. Ke5 {[%emt 0:00:00]} Kh5 {[%emt 0:00:00]} 58. Kf6 {[%emt 0:00:00]} Kg4 {[%emt 0:00:00]} 59. Kg6 {[%emt 0:00:00]} 1-0

[Event "26th OIBM 2023"]
[Site "Gmund am Tegernsee"]
[Date "2023.10.30"]
[Round "3.37"]
[White "Gopal G.N."]
[Black "Hoy, Bernd"]
[Result "1-0"]
[ECO "B45"]
[WhiteElo "2573"]
[BlackElo "2251"]
[Annotator "TA"]
[PlyCount "77"]
[EventDate "2023.10.04"]
[EventType "swiss"]
[EventCountry "GER"]
[SourceTitle "playchess.com"]
[Source "ChessBase"]
[SourceQuality "1"]
[TimeControl "40/5400+30:1800+30"]

{[%evp 12,77,12,16,3,20,18,8,19,0,9,0,80,43,35,40,45,51,58,52,99,95,139,130,125,134,229,220,239,200,191,159,225,210,310,253,312,306,290,285,320,270,308,297,304,269,304,307,350,322,381,364,397,385,460,424,612,618,693,600,1391,952,2034,1478,29984,29985,29988,2365]} 1. e4 {[%emt 0:00:03]} c5 {[%emt 0:00:03]} 2. Nf3 {[%emt 0:00:07]} e6 {[%emt 0:00:04]} 3. d4 {[%emt 0:00:35]} cxd4 {[%emt 0:00:05]} 4. Nxd4 {[%emt 0:00:03]} Nc6 {[%emt 0:00:05]} 5. Nc3 {[%emt 0:00:08]} Nf6 {[%emt 0:00:04]} 6. a3 {[%emt 0:02:09]} Be7 {[%emt 0:00:09]} 7. Be3 {[%emt 0:08:49]} O-O {[%emt 0:01:17] B45: Sicilian Four Knights.} 8. Be2 {[%emt 0:00:34]} d5 {[%emt 0:02:01] 8...d6 is the fancy move.} 9. exd5 {[%emt 0:03:20]} Nxd5 {[%emt 0:03:18] The position is equal.} 10. Nxd5 {[%emt 0:00:23]} Qxd5 {[%emt 0:00:55]} 11. Bf3 {[%emt 0:00:37][%mdl 64] [#] Deflection} Qe5 $146 {[%emt 0:07:32]} (11... Qa5+ $11 12. b4 Qc7 13. Nxc6 bxc6) ({Predecessor:} 11... Qc4 12. Nxc6 bxc6 13. Be2 Qh4 14. Qd4 Qxd4 15. Bxd4 c5 16. Bf3 Rb8 17. Be5 Rb6 {1-0 Narayanan,S (2540)-Shyam,S (2518) Sukooon Resort Indian rapid 2020 (4.1)}) 12. Nxc6 {[%emt 0:26:46]} (12. Bxc6 {simplifies} bxc6 13. Nxc6 Qc7 14. Nxe7+ Qxe7 15. O-O) 12... bxc6 {[%emt 0:01:22]} 13. Qd4 {[%emt 0:01:23]} Qb5 {[%emt 0:03:45]} 14. O-O-O {[%emt 0:11:44]} Rb8 {[%emt 0:05:12] [#] White must now prevent ...Bf6.} 15. a4 {[%emt 0:05:44]} (15. Qxa7 $2 Rb7 16. Qd4 Bf6 $19) 15... Qa5 {[%emt 0:10:32] Black is now going downhill.} (15... Qf5 $14) 16. Qxa7 $16 {[%emt 0:01:44]} (16. Bxc6 $2 Bf6 17. Bd2 Qc7 $19) 16... Qb4 {[%emt 0:00:06]} 17. Qd4 {[%emt 0:02:28] Threatens to win with Qxb4. Active counter play!} (17. Bxc6 $2 Qxb2+ 18. Kd2 Bb4+ 19. Ke2 Qxc2+ 20. Kf3 Qxc6+ $19) 17... Qa5 {[%emt 0:00:05]} 18. Bd2 {[%emt 0:04:07]} (18. Bxc6 $2 {perishes.} Bf6 $19) 18... Qa6 {[%emt 0:00:55]} (18... Qf5 $16 {was worth a try.} 19. Qe3 (19. Bxc6 Bf6 $19) 19... Bf6) 19. Bc3 $18 {[%emt 0:02:10][%csl Gc3][%cal Rd4g7]} f6 {[%emt 0:01:52]} 20. a5 {[%emt 0:02:02]} c5 {[%emt 0:04:08]} 21. Qe3 {[%emt 0:01:49]} Kh8 {[%emt 0:02:25]} (21... c4 $16 22. Qf4 e5 23. Bd5+ Kh8 24. Qxc4 Qa7) 22. Rhe1 {[%emt 0:08:18]} Bd6 {[%emt 0:11:38]} (22... e5 $142 23. Bd5 Bf5) 23. g3 {[%emt 0:03:44]} Rg8 {[%emt 0:01:27]} 24. Be2 {[%emt 0:06:27]} Qc6 {[%emt 0:01:01]} 25. Bc4 {[%emt 0:00:20]} Re8 {[%emt 0:01:48]} 26. h4 {[%emt 0:00:53]} Bf8 {[%emt 0:01:59]} 27. b3 {[%emt 0:02:19]} Ba6 {[%emt 0:01:49]} 28. Qe2 {[%emt 0:00:54]} (28. Bxe6 c4 29. Qe4 Qc5 $16) 28... Bxc4 {[%emt 0:02:19]} 29. Qxc4 {[%emt 0:00:01]} ({Not} 29. bxc4 Qa4 30. Kd2 Qa3 $14) 29... Qf3 {[%emt 0:00:39]} 30. Re2 {[%emt 0:01:59][%cal Be1e2,Be2d2,Bd2d7][%mdl 32]} (30. Rxe6 $2 {loses.} Rxe6 31. Qxe6 Qxc3 $19) 30... e5 {[%emt 0:00:34]} 31. Kb2 {[%emt 0:00:28]} Qc6 {[%emt 0:02:47]} 32. Red2 {[%emt 0:01:22]} h6 {[%emt 0:00:34]} 33. Rd7 {[%emt 0:00:36]} e4 {[%emt 0:00:32]} (33... Qf3 $142 34. g4 Qc6) 34. g4 {[%emt 0:00:41]} e3 {[%emt 0:00:32]} 35. fxe3 {[%emt 0:00:05][%cal Og4g5] Hoping for g5!} Qg2 {[%emt 0:01:00]} 36. a6 {[%emt 0:01:30][%cal Ba5a6,Ba6a7][%mdl 32]} Re4 {[%emt 0:00:28]} 37. a7 {[%emt 0:01:10]} Rc8 {[%emt 0:01:06]} 38. Qd5 {[%emt 0:00:46]} c4 {[%emt 0:00:11]} 39. Rd2 {[%emt 0:00:50] Weighted Error Value: White=0.12 (very precise) /Black=0.60} (39. a8=Q $142 Rce8 40. Qxe8 Rxe8 41. Qxg2 Kh7 42. Rd8 Rxe3 43. Rxf8 Kg6 44. Qd5) 1-0